[Event "WCCC G10 2019"]
[Site "Weifang"]
[Date "2019.08.29"]
[Round "8.7"]
[White "Shukhman, Anna"]
[Black "Mai, Hieu Linh"]
[Result "1/2-1/2"]
[ECO "C68"]
[WhiteElo "1806"]
[BlackElo "1344"]
[Annotator "NA"]
[PlyCount "129"]
[EventDate "2019.08.21"]
[EventType "swiss"]
[EventCountry "CHN"]
[SourceTitle "playchess.com"]
[Source "ChessBase"]
[SourceQuality "1"]
[TimeControl "40/5400+30:1800+30"]

1. e4 {[%emt 0:00:00]} e5 {[%emt 0:00:00]} 2. Nf3 {[%emt 0:00:00]} Nc6 {[%emt 0:00:49]} 3. Bb5 {[%emt 0:00:00]} a6 {[%emt 0:00:18]} 4. Bxc6 {[%emt 0:00:00]} dxc6 {[%emt 0:00:37]} 5. O-O {[%emt 0:00:02]} Bg4 {[%emt 0:00:55]} 6. h3 {[%emt 0:00:11]} h5 {[%emt 0:00:59]} 7. d3 {[%emt 0:00:11]} Bxf3 {[%emt 0:02:16]} 8. Qxf3 {[%emt 0:00:13]} Nf6 {[%emt 0:01:45] C68: Ruy Lopez: Exchange Variation, sidelines} (8... Qd7 9. Be3 f6 10. Rd1 g5 11. Qe2 c5 12. Nc3 O-O-O 13. Nd5 Bd6 14. c3 g4 15. h4 Ne7 16. Nxf6 {1-0 (78) Smirnov,A (2569)-Safarli,E (2681) chess.com INT 2019}) 9. Bg5 {[%emt 0:01:25]} Be7 {[%emt 0:01:08]} 10. Nd2 {[%emt 0:01:22]} Nd7 {[%emt 0:07:59]} 11. Be3 {[%emt 0:03:51]} Bg5 $146 {[%emt 0:01:54]} ({Predecessor:} 11... Kf8 12. Nc4 Kg8 13. Rab1 b5 14. Na5 c5 15. b4 cxb4 16. Nc6 {1-0 (42) Schubert,S-Trevis,R LSS email 2007}) 12. Nc4 {[%emt 0:02:32]} Qf6 {[%emt 0:02:46]} 13. Qe2 {[%emt 0:01:22]} O-O-O {[%emt 0:02:36]} 14. b4 {[%emt 0:03:45]} Bxe3 {[%emt 0:05:29]} 15. Qxe3 {[%emt 0:00:22]} g5 {[%emt 0:12:15]} (15... b6 $14) 16. a4 {[%emt 0:04:47]} (16. Qa7 $18) 16... b6 {[%emt 0:07:44]} 17. Qg3 {[%emt 0:08:14]} Rdg8 {[%emt 0:07:01]} 18. Ne3 {[%emt 0:04:21]} Nf8 {[%emt 0:04:57]} 19. b5 {[%emt 0:04:16]} cxb5 {[%emt 0:02:41]} 20. Nd5 {[%emt 0:03:28]} Qe6 {[%emt 0:00:56]} 21. axb5 {[%emt 0:02:06]} a5 {[%emt 0:01:10]} 22. Ra4 {[%emt 0:04:00]} h4 {[%emt 0:11:32]} 23. Qe3 {[%emt 0:08:55]} Nd7 {[%emt 0:01:27]} 24. Rc4 {[%emt 0:01:14]} Nc5 {[%emt 0:00:23]} 25. Rxc5 {[%emt 0:07:37]} bxc5 {[%emt 0:01:45]} 26. Qxc5 {[%emt 0:00:46]} Qd6 {[%emt 0:00:52]} 27. Qxd6 {[%emt 0:00:36]} cxd6 {[%emt 0:00:57]} 28. Ne7+ {[%emt 0:00:15]} Kb7 {[%emt 0:01:08]} 29. Nxg8 {[%emt 0:00:04]} Rxg8 {[%emt 0:00:16]} 30. Ra1 {[%emt 0:00:11]} Kb6 {[%emt 0:00:21]} 31. c4 {[%emt 0:00:07]} Ra8 $16 {[%emt 0:04:48]} 32. Ra4 {[%emt 0:00:23]} Rf8 {[%emt 0:01:46]} 33. f3 {[%emt 0:03:26]} f5 {[%emt 0:03:17]} 34. exf5 {[%emt 0:01:12]} Rxf5 {[%emt 0:00:17]} 35. Kf2 {[%emt 0:00:07]} Rf4 {[%emt 0:00:54]} 36. Ke3 {[%emt 0:01:17]} d5 {[%emt 0:03:14]} 37. Kd2 {[%emt 0:03:46]} dxc4 {[%emt 0:02:03]} 38. dxc4 {[%emt 0:00:26]} Rd4+ {[%emt 0:01:08]} 39. Kc3 {[%emt 0:04:25]} Kc5 {[%emt 0:01:46]} 40. Rxa5 {[%emt 0:00:22]} Rxc4+ {[%emt 0:00:11]} 41. Kd3 {[%emt 0:30:14]} Rd4+ {[%emt 0:32:03]} 42. Ke3 {[%emt 0:00:39]} Rb4 {[%emt 0:03:03]} 43. b6+ {[%emt 0:00:51]} Kd6 {[%emt 0:01:07]} 44. b7 {[%emt 0:02:06]} Ke6 {[%emt 0:00:00]} 45. Ra6+ {[%emt 0:00:00]} Kf5 {[%emt 0:00:00]} 46. Ra7 {[%emt 0:00:00]} Rb3+ {[%emt 0:00:00]} 47. Kd2 {[%emt 0:00:00]} Kf4 {[%emt 0:00:00]} 48. Kc2 {[%emt 0:00:00]} Rb6 {[%emt 0:00:00]} 49. Kd3 {[%emt 0:00:00]} Kg3 {[%emt 0:00:00]} 50. Ra2 {[%emt 0:00:00]} Rxb7 {[%emt 0:00:00]} 51. Ke4 {[%emt 0:00:00]} Rb1 {[%emt 0:00:00]} 52. Kxe5 {[%emt 0:00:00]} Rg1 {[%emt 0:00:00]} 53. Kf5 {[%emt 0:00:00]} Rxg2 {[%emt 0:00:00]} 54. Rxg2+ {[%emt 0:00:00]} Kxg2 {[%emt 0:00:00]} 55. Kg4 {[%emt 0:00:00]} Kh2 {[%emt 0:00:00]} 56. Kxg5 {[%emt 0:00:00]} Kxh3 {[%emt 0:00:00]} 57. f4 {[%emt 0:00:00]} Kg3 {[%emt 0:00:00]} 58. f5 {[%emt 0:00:00]} h3 {[%emt 0:00:00]} 59. f6 {[%emt 0:00:00]} h2 {[%emt 0:00:00]} 60. f7 {[%emt 0:00:00]} h1=Q {[%emt 0:00:00]} 61. f8=Q {[%emt 0:00:00]} Qh4+ {[%emt 0:00:00]} 62. Kg6 {[%emt 0:00:00]} Qg4+ {[%emt 0:00:00]} 63. Kf7 {[%emt 0:00:00]} Qf5+ {[%emt 0:00:00]} 64. Kg8 {[%emt 0:00:00]} Qxf8+ {[%emt 0:00:00]} 65. Kxf8 {[%emt 0:00:00]} 1/2-1/2

[Event "WCCC G10 2019"]
[Site "Weifang"]
[Date "2019.08.29"]
[Round "8.8"]
[White "Rouda Essa, Alserkal"]
[Black "Sachi Jain"]
[Result "1/2-1/2"]
[ECO "C97"]
[WhiteElo "1601"]
[BlackElo "1282"]
[Annotator "NA"]
[PlyCount "85"]
[EventDate "2019.08.21"]
[EventType "swiss"]
[EventCountry "CHN"]
[SourceTitle "playchess.com"]
[Source "ChessBase"]
[SourceQuality "1"]
[TimeControl "40/5400+30:1800+30"]

1. e4 {[%emt 0:00:00]} e5 {[%emt 0:00:00]} 2. Nf3 {[%emt 0:00:07]} Nc6 {[%emt 0:00:12]} 3. Bb5 {[%emt 0:00:10]} a6 {[%emt 0:00:31]} 4. Ba4 {[%emt 0:00:06]} Nf6 {[%emt 0:00:25]} 5. O-O {[%emt 0:00:15]} Be7 {[%emt 0:00:26]} 6. Re1 {[%emt 0:00:24]} b5 {[%emt 0:00:26]} 7. Bb3 {[%emt 0:00:05]} d6 {[%emt 0:00:31]} 8. c3 {[%emt 0:00:25]} O-O {[%emt 0:00:28]} 9. h3 {[%emt 0:00:21]} Na5 {[%emt 0:01:02]} 10. Bc2 {[%emt 0:00:06]} c5 {[%emt 0:00:31]} 11. d4 {[%emt 0:01:09]} Qc7 {[%emt 0:01:18]} 12. d5 {[%emt 0:00:44]} Nc4 {[%emt 0:05:21]} 13. Bd3 {[%emt 0:16:52]} Nb6 {[%emt 0:03:58]} 14. Nbd2 {[%emt 0:01:08]} Ne8 {[%emt 0:10:11]} 15. c4 {[%emt 0:36:25]} bxc4 {[%emt 0:04:56]} 16. Nxc4 {[%emt 0:00:17]} f5 {[%emt 0:02:43]} 17. exf5 {[%emt 0:18:17]} Bxf5 {[%emt 0:01:36]} 18. Ng5 {[%emt 0:05:20]} Bxg5 {[%emt 0:05:28]} 19. Bxg5 {[%emt 0:00:11]} Nxc4 {[%emt 0:02:18]} 20. Bxc4 {[%emt 0:00:10]} Qf7 {[%emt 0:00:21]} 21. Qf3 {[%emt 0:03:31]} Qg6 {[%emt 0:04:40]} 22. Qg3 {[%emt 0:01:13]} Nf6 {[%emt 0:02:06]} 23. Bxf6 {[%emt 0:01:50]} Qxf6 {[%emt 0:04:55]} 24. Re2 {[%emt 0:00:33]} Qd8 {[%emt 0:05:07]} 25. Rc1 {[%emt 0:01:51]} Rf6 {[%emt 0:00:51]} 26. Rc3 {[%emt 0:00:59]} Rg6 {[%emt 0:01:22]} 27. Qe3 {[%emt 0:02:23]} Qh4 {[%emt 0:04:11]} 28. Rd2 {[%emt 0:00:51]} Be4 {[%emt 0:11:14]} 29. Bf1 {[%emt 0:00:59]} Bf5 {[%emt 0:07:11]} 30. Kh1 {[%emt 0:00:34]} a5 {[%emt 0:03:32]} 31. Ra3 {[%emt 0:04:20]} Bd7 {[%emt 0:03:17]} 32. Rb3 {[%emt 0:01:07]} Rf8 {[%emt 0:02:24]} 33. Rb7 {[%emt 0:01:11]} Bc8 {[%emt 0:01:02]} 34. Ra7 {[%emt 0:00:38]} Rgf6 {[%emt 0:01:21]} 35. Kg1 {[%emt 0:00:31]} Rg6 {[%emt 0:00:52]} 36. Kh2 {[%emt 0:01:18]} Rgf6 {[%emt 0:01:51]} 37. Kg1 {[%emt 0:00:54]} Rg6 {[%emt 0:01:44]} 38. Kh2 {[%emt 0:00:43]} Qb4 {[%emt 0:02:25]} 39. Qc3 {[%emt 0:00:21]} Qh4 {[%emt 0:03:31]} 40. Qe3 {[%emt 0:00:59]} Rgf6 {[%emt 0:00:56]} 41. Kg1 {[%emt 0:18:33]} Rg6 {[%emt 0:02:35]} 42. Kh2 {[%emt 0:02:14]} Rgf6 {[%emt 0:00:17]} 43. Kg1 {[%emt 0:00:27]} 1/2-1/2

[Event "WCCC G10 2019"]
[Site "Weifang"]
[Date "2019.08.29"]
[Round "8.9"]
[White "Li, Shutong"]
[Black "Zhao, Yunqing"]
[Result "0-1"]
[ECO "E21"]
[WhiteElo "1307"]
[BlackElo "1539"]
[Annotator "NA"]
[PlyCount "88"]
[EventDate "2019.08.21"]
[EventType "swiss"]
[EventCountry "CHN"]
[SourceTitle "playchess.com"]
[Source "ChessBase"]
[SourceQuality "1"]
[TimeControl "40/5400+30:1800+30"]

1. d4 {[%emt 0:00:00]} Nf6 {[%emt 0:00:00]} 2. Nf3 {[%emt 0:00:00]} e6 {[%emt 0:00:00]} 3. c4 {[%emt 0:00:16]} b6 {[%emt 0:00:00]} 4. Nc3 {[%emt 0:00:35]} Bb4 {[%emt 0:00:00]} 5. e3 {[%emt 0:01:07]} Bb7 {[%emt 0:00:06]} 6. Bd2 {[%emt 0:00:25]} O-O {[%emt 0:00:20]} 7. Bd3 {[%emt 0:00:43]} d6 {[%emt 0:00:42]} 8. O-O {[%emt 0:00:37]} Nbd7 {[%emt 0:00:22]} 9. Qe2 {[%emt 0:02:34]} e5 {[%emt 0:00:46]} 10. e4 {[%emt 0:07:30]} exd4 {[%emt 0:02:12]} 11. Nxd4 {[%emt 0:00:20]} Re8 {[%emt 0:01:06]} 12. f3 {[%emt 0:02:03]} Bc5 {[%emt 0:03:08]} 13. Be3 {[%emt 0:01:56]} Ne5 {[%emt 0:04:35]} 14. Nf5 {[%emt 0:07:02]} Bxe3+ {[%emt 0:00:54]} 15. Nxe3 {[%emt 0:00:22]} Nfd7 {[%emt 0:03:13]} 16. Qc2 {[%emt 0:05:53]} Nc5 {[%emt 0:02:41]} 17. Be2 {[%emt 0:00:36]} a5 {[%emt 0:01:33]} 18. b3 {[%emt 0:05:17]} Nc6 {[%emt 0:06:33]} 19. Rfd1 {[%emt 0:04:47]} Bc8 {[%emt 0:11:15]} 20. Rab1 {[%emt 0:04:36]} Be6 {[%emt 0:01:29]} 21. Nb5 {[%emt 0:02:33]} Na6 {[%emt 0:12:14]} 22. Nd4 {[%emt 0:04:41]} Nxd4 {[%emt 0:00:30]} 23. Rxd4 {[%emt 0:02:06]} Qg5 {[%emt 0:00:27]} 24. Nf1 {[%emt 0:05:46]} Qc5 {[%emt 0:03:38]} 25. Qd2 {[%emt 0:03:31]} Nb4 {[%emt 0:00:24]} 26. Kh1 {[%emt 0:01:38]} Nxa2 {[%emt 0:01:40]} 27. Rd1 {[%emt 0:05:36]} Nb4 {[%emt 0:00:43]} 28. Ne3 {[%emt 0:01:00]} Nc6 {[%emt 0:02:57]} 29. Rd3 {[%emt 0:00:33]} Ne5 {[%emt 0:00:35]} 30. Rc3 {[%emt 0:02:34]} Nc6 {[%emt 0:03:40]} 31. Rd3 {[%emt 0:01:01]} Nb4 {[%emt 0:00:31]} 32. Rd4 {[%emt 0:00:49]} Ra7 {[%emt 0:03:01]} 33. Nd5 {[%emt 0:02:46]} Nc6 {[%emt 0:00:45]} 34. Rd3 {[%emt 0:00:19]} Ne7 {[%emt 0:00:20]} 35. Rd4 {[%emt 0:03:42]} Qc6 {[%emt 0:01:06]} 36. Qg5 {[%emt 0:04:13]} Bxd5 {[%emt 0:02:59]} 37. exd5 {[%emt 0:01:13]} Qd7 {[%emt 0:00:36]} 38. Bd3 {[%emt 0:02:27]} Ng6 {[%emt 0:00:50]} 39. Bc2 {[%emt 0:01:35]} Raa8 {[%emt 0:01:35]} 40. h4 {[%emt 0:02:20]} Qe7 {[%emt 0:02:18]} 41. Qf5 {[%emt 0:31:29]} Qe5 {[%emt 0:31:28]} 42. Qg4 {[%emt 0:01:17]} h5 {[%emt 0:02:19]} 43. Qh3 {[%emt 0:01:11]} Nf4 {[%emt 0:01:17]} 44. Qh2 {[%emt 0:04:24]} Qxd4 {[%emt 0:00:45]} 0-1

[Event "WCCC G10 2019"]
[Site "Weifang"]
[Date "2019.08.29"]
[Round "8.10"]
[White "Chevillon, Manon"]
[Black "Kirtadze, Anastasia"]
[Result "0-1"]
[ECO "B53"]
[WhiteElo "1232"]
[BlackElo "1532"]
[Annotator "NA"]
[PlyCount "94"]
[EventDate "2019.08.21"]
[EventType "swiss"]
[EventCountry "CHN"]
[SourceTitle "playchess.com"]
[Source "ChessBase"]
[SourceQuality "1"]
[TimeControl "40/5400+30:1800+30"]

1. e4 {[%emt 0:00:00]} c5 {[%emt 0:00:00]} 2. Nf3 {[%emt 0:00:08]} d6 {[%emt 0:00:13]} 3. d4 {[%emt 0:00:49]} cxd4 {[%emt 0:01:44]} 4. Qxd4 {[%emt 0:01:42]} Nc6 {[%emt 0:00:46]} 5. Bb5 {[%emt 0:01:40]} Bd7 {[%emt 0:02:53]} 6. Bxc6 {[%emt 0:01:29]} bxc6 {[%emt 0:02:10]} 7. e5 {[%emt 0:06:53]} d5 {[%emt 0:02:32]} 8. O-O {[%emt 0:05:14]} e6 {[%emt 0:01:49]} 9. Bd2 {[%emt 0:09:58]} c5 {[%emt 0:02:34]} 10. Qe3 {[%emt 0:05:52]} h6 {[%emt 0:05:38]} 11. Qe1 {[%emt 0:06:36]} Bb5 {[%emt 0:00:42]} 12. Nc3 {[%emt 0:02:04]} Bxf1 {[%emt 0:00:13]} 13. Qxf1 {[%emt 0:02:35]} Qd7 {[%emt 0:05:34]} 14. h3 {[%emt 0:05:54]} Ne7 {[%emt 0:02:33]} 15. b3 {[%emt 0:03:50]} Nc6 {[%emt 0:02:22]} 16. a3 {[%emt 0:06:58]} Be7 {[%emt 0:05:09]} 17. Qe2 {[%emt 0:03:13]} O-O {[%emt 0:03:22]} 18. Nh2 {[%emt 0:04:28]} f5 {[%emt 0:01:13]} 19. f4 {[%emt 0:06:11]} Nd4 {[%emt 0:00:44]} 20. Qd3 {[%emt 0:02:11]} Rac8 {[%emt 0:02:21]} 21. Kh1 {[%emt 0:02:35]} c4 {[%emt 0:01:54]} 22. bxc4 {[%emt 0:02:58]} dxc4 {[%emt 0:00:29]} 23. Qf1 {[%emt 0:02:28]} Nxc2 {[%emt 0:00:40]} 24. Rd1 {[%emt 0:01:05]} Nxa3 {[%emt 0:01:01]} 25. Be3 {[%emt 0:01:43]} Qc6 {[%emt 0:00:51]} 26. Bxa7 {[%emt 0:02:13]} Nb5 {[%emt 0:01:32]} 27. Nxb5 {[%emt 0:00:37]} Qxb5 {[%emt 0:00:07]} 28. Be3 {[%emt 0:00:42]} Qb3 {[%emt 0:01:07]} 29. Bf2 {[%emt 0:01:17]} Rfd8 {[%emt 0:00:42]} 30. Rb1 {[%emt 0:00:32]} Qd3 {[%emt 0:00:05]} 31. Qe1 {[%emt 0:01:34]} c3 {[%emt 0:00:58]} 32. Nf3 {[%emt 0:02:35]} c2 {[%emt 0:00:06]} 33. Rc1 {[%emt 0:01:33]} Ba3 {[%emt 0:00:19]} 34. Ra1 {[%emt 0:00:59]} c1=Q {[%emt 0:00:37]} 35. Rxc1 {[%emt 0:00:39]} Rxc1 {[%emt 0:00:04]} 36. Kh2 {[%emt 0:01:14]} Rxe1 {[%emt 0:00:08]} 37. Bxe1 {[%emt 0:00:22]} Qe2 {[%emt 0:00:09]} 38. Bg3 {[%emt 0:01:13]} Rd1 {[%emt 0:00:07]} 39. Bh4 {[%emt 0:00:51]} Rf1 {[%emt 0:00:14]} 40. Nd4 {[%emt 0:01:10]} Qe4 {[%emt 0:00:17]} 41. Nf3 {[%emt 0:30:59]} Qxf4+ {[%emt 0:30:12]} 42. Bg3 {[%emt 0:00:25]} Qc1 {[%emt 0:00:05]} 43. Bh4 {[%emt 0:01:01]} f4 {[%emt 0:00:06]} 44. Ne1 {[%emt 0:01:14]} Bb4 {[%emt 0:00:05]} 45. g3 {[%emt 0:00:39]} Rf2+ {[%emt 0:00:12]} 46. Ng2 {[%emt 0:00:48]} Qf1 {[%emt 0:00:06]} 47. gxf4 {[%emt 0:00:50]} Qxg2# {[%emt 0:00:05]} 0-1

[Event "WCCC G10 2019"]
[Site "Weifang"]
[Date "2019.08.30"]
[Round "9.1"]
[White "Lee, Alice"]
[Black "Feng, Eunice"]
[Result "1-0"]
[ECO "D90"]
[WhiteElo "1822"]
[BlackElo "1280"]
[Annotator "NA RC"]
[PlyCount "89"]
[EventDate "2019.08.21"]
[EventType "swiss"]
[EventCountry "CHN"]
[SourceTitle "playchess.com"]
[Source "ChessBase"]
[SourceQuality "1"]
[TimeControl "40/5400+30:1800+30"]

{[%evp 17,80,0,0,32767,40,36,34,34,32767,17,64,71,96,32767,112,32767,32767,127,133,123,172,32767,182,184,175,177,183,190,175,32767,174,175,189,175,189,195,184,147,195,32767,32767,32767,183,41,50,32767,32767,60,32767,32767,32767,32767,32767,199,32767,32767,530,593,1020,1435,1520,2286,32767,1177,1147]} 1. d4 {[%emt 0:00:00]} Nf6 {[%emt 0:00:00]} 2. c4 {[%emt 0:00:00]} g6 {[%emt 0:00:00]} 3. Nc3 {[%emt 0:00:00]} d5 {[%emt 0:00:00]} 4. Nf3 {[%emt 0:00:22]} Bg7 {[%emt 0:00:00]} 5. cxd5 {[%emt 0:00:45]} Nxd5 {[%emt 0:00:07]} 6. Bd2 {[%emt 0:01:17]} O-O {[%emt 0:01:14]} 7. Rc1 {[%emt 0:00:38]} Nxc3 {[%emt 0:09:38]} 8. Bxc3 {[%emt 0:01:03]} c5 {[%emt 0:00:52] D90: Grünfeld: 4 Nf3 Bg7 sidelines} (8... Bg4 9. e3 c5 10. dxc5 Bxc3+ 11. Rxc3 Qa5 12. a3 Bxf3 13. Qc2 Nc6 14. gxf3 Qc7 15. b4 e5 16. f4 {½-½ (32) Fridman,D (2665)-Sutovsky,E (2675) Netanya 2009}) 9. dxc5 {[%emt 0:01:25]} Qxd1+ {[%emt 0:00:25]} 10. Kxd1 {[%emt 0:01:23]} Rd8+ {[%emt 0:00:18]} 11. Ke1 $146 {[%emt 0:01:49]} ({Predecessor:} 11. Nd2 Bxc3 12. Rxc3 Be6 13. a3 Nd7 14. e3 b6 15. cxb6 Nxb6 {0-1 (39) Sokolovs,J (2178)-Soergel,F (2038) Fuerth 2000}) 11... Be6 {[%emt 0:03:03]} 12. Bxg7 {[%emt 0:03:06]} Kxg7 {[%emt 0:00:07]} 13. a3 {[%emt 0:04:31]} Nc6 {[%emt 0:05:34]} 14. e3 {[%emt 0:03:30]} Bd5 {[%emt 0:02:23]} 15. Bc4 {[%emt 0:04:02]} Bxf3 {[%emt 0:04:58]} 16. gxf3 {[%emt 0:00:06]} Ne5 {[%emt 0:04:20]} 17. Ke2 {[%emt 0:03:48]} Rd7 {[%emt 0:03:35]} 18. Bb5 {[%emt 0:04:44]} Rd5 {[%emt 0:00:30]} 19. Rhd1 {[%emt 0:06:57]} Rad8 {[%emt 0:02:04]} 20. Rxd5 {[%emt 0:03:31]} Rxd5 {[%emt 0:00:08]} 21. f4 {[%emt 0:03:22]} Nc6 {[%emt 0:02:13]} 22. Bxc6 {[%emt 0:03:33]} bxc6 {[%emt 0:00:06]} 23. b4 {[%emt 0:01:28]} Rd7 {[%emt 0:03:47]} 24. Rd1 {[%emt 0:03:45]} Rb7 {[%emt 0:00:46]} 25. Kd3 {[%emt 0:01:24]} a5 {[%emt 0:08:45]} 26. Kc4 {[%emt 0:04:11]} axb4 {[%emt 0:03:57]} 27. axb4 {[%emt 0:00:07]} Kf6 {[%emt 0:00:16]} 28. Rd8 {[%emt 0:03:38]} Ke6 {[%emt 0:02:42]} 29. e4 {[%emt 0:06:13]} Ra7 {[%emt 0:01:48] [#]} 30. Rd3 $2 {[%emt 0:06:52]} (30. f5+ $1 $18 gxf5 31. exf5+ Kxf5 32. Rc8) 30... Ra4 {[%emt 0:07:18]} 31. Rh3 {[%emt 0:05:40]} h5 {[%emt 0:00:14]} 32. f5+ {[%emt 0:02:32]} Ke5 {[%emt 0:04:53]} 33. fxg6 {[%emt 0:02:05]} fxg6 {[%emt 0:00:08]} 34. Rg3 {[%emt 0:00:51]} Kf6 {[%emt 0:03:44]} 35. f4 {[%emt 0:03:48] Decoy} Ra8 {[%emt 0:08:01]} 36. b5 {[%emt 0:04:23]} Ra4+ {[%emt 0:12:28] [#]} 37. Kb3 $1 {[%emt 0:00:38]} cxb5 {[%emt 0:01:04]} 38. c6 {[%emt 0:02:08]} Ra8 {[%emt 0:03:16]} 39. Kb4 {[%emt 0:00:44]} Rb8 {[%emt 0:00:23]} 40. Kc5 {[%emt 0:02:48]} b4 $18 {[%emt 0:01:34]} 41. c7 {[%emt 0:31:14]} Rc8 {[%emt 0:32:44]} 42. Kc6 {[%emt 0:00:33]} e5 {[%emt 0:00:15]} 43. fxe5+ {[%emt 0:00:49]} Kxe5 {[%emt 0:00:05]} 44. Rxg6 {[%emt 0:01:14]} Kxe4 {[%emt 0:00:21]} 45. Rh6 {[%emt 0:02:31] Kd5+} 1-0

[Event "WCCC G10 2019"]
[Site "Weifang"]
[Date "2019.08.30"]
[Round "9.2"]
[White "Chen, Yining"]
[Black "Ho, Ngoc Vy"]
[Result "1-0"]
[ECO "D53"]
[WhiteElo "1744"]
[BlackElo "1416"]
[Annotator "NA RC"]
[PlyCount "72"]
[EventDate "2019.08.21"]
[EventType "swiss"]
[EventCountry "CHN"]
[SourceTitle "playchess.com"]
[Source "ChessBase"]
[SourceQuality "1"]
[TimeControl "40/5400+30:1800+30"]

1. d4 {[%emt 0:00:00]} d5 {[%emt 0:00:00]} 2. c4 {[%emt 0:00:00]} e6 {[%emt 0:00:10]} 3. Nf3 {[%emt 0:00:40]} Nf6 {[%emt 0:00:24]} 4. Nc3 {[%emt 0:00:49]} Be7 {[%emt 0:00:11]} 5. Qc2 {[%emt 0:00:44]} O-O {[%emt 0:00:14]} 6. Bg5 {[%emt 0:00:35]} h6 {[%emt 0:08:46]} 7. Bxf6 {[%emt 0:00:28]} Bxf6 {[%emt 0:00:10]} 8. Rd1 {[%emt 0:01:16]} c6 {[%emt 0:01:41]} 9. e4 {[%emt 0:01:06]} dxe4 {[%emt 0:02:23]} 10. Qxe4 {[%emt 0:02:00]} Nd7 {[%emt 0:02:47]} 11. Bd3 {[%emt 0:00:22]} g6 {[%emt 0:00:11]} 12. h4 {[%emt 0:01:58]} Bg7 {[%emt 0:00:37]} 13. h5 {[%emt 0:09:56]} Nf6 {[%emt 0:03:17]} 14. Qe3 {[%emt 0:02:33]} Nxh5 {[%emt 0:04:26]} 15. g4 {[%emt 0:04:30]} Nf6 {[%emt 0:02:28]} 16. Ne5 {[%emt 0:01:35]} Nh7 {[%emt 0:04:06]} 17. f4 {[%emt 0:08:05]} Qe8 {[%emt 0:06:15]} 18. Ne4 {[%emt 0:03:56]} f5 {[%emt 0:10:34]} 19. Nd6 {[%emt 0:02:19]} Qd8 {[%emt 0:00:13]} 20. c5 {[%emt 0:05:33]} Nf6 {[%emt 0:10:04]} 21. g5 {[%emt 0:08:00]} Nd5 {[%emt 0:01:17]} 22. gxh6 {[%emt 0:09:25]} Bxe5 {[%emt 0:00:31]} 23. Qxe5 {[%emt 0:00:17]} Qf6 {[%emt 0:00:16]} 24. Qxf6 {[%emt 0:03:57]} Nxf6 {[%emt 0:01:17]} 25. Nc4 {[%emt 0:04:23]} Kh7 {[%emt 0:02:40]} 26. Ne5 {[%emt 0:01:46]} b6 {[%emt 0:02:45]} 27. b4 {[%emt 0:05:16]} Bb7 {[%emt 0:00:58]} 28. Bc4 {[%emt 0:02:01]} Rae8 {[%emt 0:00:14]} 29. Rg1 {[%emt 0:00:59]} Rg8 {[%emt 0:01:21]} 30. Nf7 {[%emt 0:00:49]} Nh5 {[%emt 0:07:43]} 31. Rf1 {[%emt 0:04:50]} Re7 {[%emt 0:00:56]} 32. Ne5 {[%emt 0:02:43]} Kxh6 {[%emt 0:00:52]} 33. Kd2 {[%emt 0:01:00]} Kg7 {[%emt 0:00:57]} 34. Ke3 {[%emt 0:00:27]} Kf6 {[%emt 0:00:23]} 35. Rg1 {[%emt 0:00:45]} Reg7 {[%emt 0:16:41]} 36. Rg5 {[%emt 0:01:10]} b5 {[%emt 0:00:00]} 1-0

[Event "WCCC G10 2019"]
[Site "Weifang"]
[Date "2019.08.30"]
[Round "9.3"]
[White "Zhao, Yunqing"]
[Black "Li, Rachael"]
[Result "1/2-1/2"]
[ECO "D34"]
[WhiteElo "1539"]
[BlackElo "1911"]
[Annotator "NA RC"]
[PlyCount "104"]
[EventDate "2019.08.21"]
[EventType "swiss"]
[EventCountry "CHN"]
[SourceTitle "playchess.com"]
[Source "ChessBase"]
[SourceQuality "1"]
[TimeControl "40/5400+30:1800+30"]

{[%evp 20,101,33,18,22,30,32767,32767,32767,2,24,21,10,31,17,32767,22,22,55,60,67,0,2,0,64,-15,32767,0,40,0,31,0,32767,32767,32767,-20,32767,32767,32767,32767,32767,32767,32767,-50,-47,-39,-16,-18,-13,-22,-8,-16,-8,-25,-8,-25,0,32767,32767,32767,32767,32767,-8,32767,24,24,61,60,60,61,32767,32767,32767,32767,32767,61,68,8,49,64,65,68,65,65]} 1. d4 {[%emt 0:00:00]} Nf6 {[%emt 0:00:00]} 2. c4 {[%emt 0:00:00]} e6 {[%emt 0:00:00]} 3. g3 {[%emt 0:00:00]} c5 {[%emt 0:00:00]} 4. Nf3 {[%emt 0:00:00]} cxd4 {[%emt 0:00:00]} 5. Nxd4 {[%emt 0:00:04]} d5 {[%emt 0:00:02]} 6. Bg2 {[%emt 0:01:56]} Nc6 {[%emt 0:00:49]} 7. O-O {[%emt 0:00:34]} Be7 {[%emt 0:01:21]} 8. Nc3 {[%emt 0:00:20]} O-O {[%emt 0:01:09]} 9. cxd5 {[%emt 0:00:31]} exd5 {[%emt 0:00:44]} 10. Bg5 {[%emt 0:12:21]} Be6 {[%emt 0:02:55]} 11. Nxe6 {[%emt 0:10:02] D34: Tarrasch Defence: 6 g3 Nf6 7 Bg2 Be7} (11. Rc1 h6 12. Be3 Qd7 13. Qa4 Rfc8 14. Rfd1 Ng4 15. Nxc6 bxc6 16. Bd4 Nf6 17. e4 Bg4 18. Rd2 Nxe4 19. Nxe4 dxe4 {½-½ (33) Georgiev,K (2662)-Berg,E (2583) Gibraltar 2008}) 11... fxe6 {[%emt 0:00:15]} 12. Bh3 {[%emt 0:00:07]} Qd6 {[%emt 0:13:31]} 13. Nb5 {[%emt 0:00:57]} Qd7 {[%emt 0:04:31]} 14. Bxf6 $146 {[%emt 0:09:20]} ({Predecessor:} 14. Qa4 Nd8 15. Rac1 h6 16. Be3 a6 17. Nc3 Qxa4 18. Nxa4 b5 {1-0 (50) Zaibi,A (2395)-Assabane,B El Ksiba 2019}) 14... Bxf6 {[%emt 0:02:51]} 15. e4 {[%emt 0:01:58]} d4 {[%emt 0:23:45]} 16. Qb3 {[%emt 0:00:36]} Rae8 {[%emt 0:00:50]} 17. f4 {[%emt 0:05:12]} a6 {[%emt 0:04:48]} 18. Na3 {[%emt 0:00:12]} Kh8 {[%emt 0:04:26]} 19. e5 {[%emt 0:01:13]} Bd8 {[%emt 0:00:43]} 20. Rad1 {[%emt 0:07:05]} (20. Nc4 $14) 20... b5 {[%emt 0:03:20]} 21. Bg2 {[%emt 0:01:13]} Bb6 {[%emt 0:01:38]} (21... g5 $11) 22. Kh1 {[%emt 0:00:18]} (22. Nc4 $1 $14 Bc5 23. Nd2) 22... Ne7 {[%emt 0:04:16]} 23. Nc2 {[%emt 0:02:02]} Nf5 {[%emt 0:03:33]} 24. Rd2 {[%emt 0:11:57]} (24. g4 $5 {[%cal Rg4f5]} Ne7 25. Qa3 $14) 24... Qe7 {[%emt 0:04:13]} 25. a4 {[%emt 0:09:50]} Qc5 {[%emt 0:04:21]} 26. axb5 {[%emt 0:02:33]} axb5 {[%emt 0:00:21]} 27. g4 {[%emt 0:03:09]} Ne3 {[%emt 0:01:16]} 28. Nxe3 {[%emt 0:00:10]} dxe3 {[%emt 0:00:02]} 29. Rc2 {[%emt 0:00:32]} Qd4 {[%emt 0:01:24]} 30. Qxb5 {[%emt 0:00:22]} Ba7 {[%emt 0:04:49]} 31. Qc6 {[%emt 0:06:33]} Rd8 {[%emt 0:04:50]} 32. Qe4 {[%emt 0:05:13]} Qxe4 {[%emt 0:02:18]} 33. Bxe4 {[%emt 0:00:06]} Rd4 {[%emt 0:01:40]} 34. Bb7 {[%emt 0:01:08]} h6 {[%emt 0:02:45]} 35. Ba6 {[%emt 0:07:07]} Rd2 {[%emt 0:01:38]} 36. Rxd2 $1 {[%emt 0:00:32]} exd2 {[%emt 0:00:01]} 37. Be2 {[%emt 0:00:07]} Rb8 {[%emt 0:00:32]} 38. f5 {[%emt 0:01:19]} exf5 {[%emt 0:00:38]} 39. gxf5 {[%emt 0:00:12]} Rxb2 {[%emt 0:00:56]} 40. f6 {[%emt 0:00:49]} gxf6 {[%emt 0:00:36]} 41. exf6 {[%emt 0:30:27]} d1=Q {[%emt 0:12:45]} 42. Bxd1 {[%emt 0:00:00]} Rf2 {[%emt 0:00:15]} 43. Rxf2 {[%emt 0:00:00]} Bxf2 {[%emt 0:00:05]} 44. Kg2 {[%emt 0:00:00]} Bd4 {[%emt 0:00:05]} 45. f7 {[%emt 0:00:00]} Kg7 {[%emt 0:00:03]} 46. Bb3 {[%emt 0:00:00]} Be3 {[%emt 0:00:05]} 47. Kf3 {[%emt 0:00:00]} Bc1 {[%emt 0:00:05]} 48. h4 {[%emt 0:00:00]} (48. Ke4 $14) 48... Kf8 {[%emt 0:00:25]} 49. Kg4 {[%emt 0:00:00]} Bd2 {[%emt 0:00:10]} 50. Kf5 {[%emt 0:00:00]} Bc1 {[%emt 0:00:12]} 51. Kg6 $14 {[%emt 0:00:00]} Bd2 {[%emt 0:00:03]} 52. h5 {[%emt 0:00:00]} Bg5 {[%emt 0:00:06]} 1/2-1/2